bitfinex/quotes_SOLUSD_20250901
["timestamp","ask_amount","ask_price","bid_price","bid_amount"]
[1756688590334,5.77350856,201.26,201.22,39.76]
[1756688590562,6.44350856,201.26,201.22,39.76]
[1756688591264,0.67,201.26,201.22,45.53350856]
[1756688591568,5.77350856,201.27,201.22,45.53350856]
[1756688591740,0.1,201.31,201.25,5.77350856]
[1756688591944,0.1,201.31,201.26,45.51350856]
[1756688592255,11.51105861,201.31,201.26,45.51350856]
[1756688592451,6.44350856,201.3,201.26,39.74]
[1756688592638,5.77350856,201.27,201.18,0.71]
[1756688592842,0.67,201.27,201.19,39.76]
[1756688593074,5.77350856,201.26,201.21,5.77350856]
[1756688593286,0.67,201.26,201.21,5.77350856]
[1756688593456,11.41245265,201.25,201.19,45.53350856]
[1756688593774,5.77350856,201.23,201.2,39.8]
[1756688593980,5.77350856,201.22,201.15,5.06411185]
[1756688594153,5.77350856,201.21,201.16,39.8]
[1756688594471,5.77350856,201.21,201.16,46.28350856]
[1756688594888,5.77350856,201.19,201.15,5.06411185]
[1756688595191,6.44350856,201.18,201.16,39.8]
[1756688595392,6.44350856,201.17,201.15,0.03]
[1756688595687,10.74467579,201.16,201.15,39.83]
[1756688595858,5.64116723,201.16,201.15,39.83]
[1756688596179,5.64116723,201.16,201.15,0.03]
[1756688596180,11.41467579,201.16,201.15,0.03]
[1756688596384,11.41467579,201.16,201.15,39.83]
[1756688597977,11.41467579,201.16,201.15,0.03]
[1756688598486,11.41467579,201.16,201.12,0.03]
[1756688598487,39.59559401,201.13,201.12,0.03]
[1756688598781,45.36910257,201.13,201.12,0.03]
[1756688598982,46.03910257,201.13,201.12,0.03]
[1756688599582,51.01101128,201.13,201.12,0.03]
[1756688599784,13.59559401,201.12,201.1,0.03]
[1756688599953,19.36910257,201.11,201.1,0.03]
[1756688600159,20.03910257,201.11,201.1,0.03]
[1756688600592,14.26559401,201.11,201.1,0.03]
[1756688600809,20.03910257,201.11,201.1,0.03]
[1756688601285,6.44350856,201.11,201.1,0.03]
[1756688601460,37.41591172,201.11,201.1,0.03]
[1756688601665,5.77350856,201.11,201.1,0.03]
[1756688602079,10.74591172,201.11,201.1,0.03]
[1756688602591,11.41591172,201.11,201.1,0.03]
[1756688603592,5.64240316,201.11,201.1,0.03]
[1756688603775,11.41591172,201.11,201.1,0.03]
[1756688604171,0.67,201.11,201.1,0.03]
[1756688604377,12.42795828,201.16,201.1,0.03]
[1756688604378,4.97229219,201.12,201.1,0.03]
[1756688604585,5.77350856,201.11,201.1,0.03]
[1756688604894,6.44350856,201.11,201.1,0.03]
[1756688605572,11.41591172,201.11,201.1,0.03]
[1756688605771,14.26559401,201.16,201.1,0.03]
[1756688606093,5.77350856,201.13,201.1,0.03]
[1756688606305,31.77350856,201.15,201.1,6.51350856]
[1756688606486,5.77350856,201.15,201.1,6.51350856]
[1756688606669,0.67,201.18,201.1,6.51350856]
[1756688606670,4.97092011,201.17,201.1,5.80350856]
[1756688607007,26.0,201.15,201.1,0.03]
[1756688607297,5.77350856,201.14,201.1,0.03]
[1756688607797,5.77350856,201.13,201.1,0.03]
[1756688607985,5.77350856,201.11,201.1,0.03]
[1756688608382,6.44350856,201.11,201.1,0.03]
[1756688610202,5.77350856,201.11,201.1,0.03]
[1756688610376,10.74591172,201.11,201.1,0.03]
[1756688611492,11.41591172,201.11,201.1,0.03]
[1756688612281,25.01150573,201.11,201.1,0.03]
[1756688613888,4.97240316,201.11,201.1,0.03]
[1756688614308,10.74591172,201.11,201.1,0.03]
[1756688615585,11.41591172,201.11,201.1,0.03]
[1756688615990,10.74591172,201.11,201.1,0.03]
[1756688617386,11.41591172,201.11,201.1,0.03]
[1756688617696,4.97240316,201.11,201.1,0.03]
[1756688617897,4.97017892,201.2,201.1,6.52350856]
[1756688618109,4.97017892,201.2,201.14,5.77350856]
[1756688618313,4.97017892,201.2,201.13,46.27350856]
[1756688618314,26.0,201.18,201.13,46.27350856]
[1756688618483,26.0,201.18,201.14,0.72]
[1756688618892,26.0,201.18,201.14,6.49350856]
[1756688619498,4.9706864,201.18,201.14,6.49350856]
[1756688619883,5.6406864,201.18,201.13,39.78]
[1756688620386,0.67,201.17,201.13,39.78]
[1756688620602,5.77350856,201.16,201.13,39.78]
[1756688620900,4.9706864,201.18,201.1,0.03]
[1756688620901,26.0,201.13,201.1,0.03]
[1756688621106,5.77350856,201.12,201.1,0.03]
[1756688621888,5.77350856,201.11,201.1,0.03]
[1756688623886,10.74567423,201.12,201.1,0.03]
[1756688624223,5.77350856,201.13,201.1,0.03]
[1756688624835,5.77350856,201.11,201.1,0.03]
[1756688625036,0.67,201.15,201.1,0.03]
[1756688625214,5.77350856,201.12,201.1,0.03]
[1756688626014,4.97240316,201.11,201.1,0.03]
[1756688626326,11.41591172,201.11,201.1,0.03]
[1756688626514,10.74591172,201.11,201.1,0.03]
[1756688626715,5.77350856,201.11,201.1,0.03]
[1756688628913,11.41591172,201.11,201.1,0.03]
[1756688629341,6.44350856,201.11,201.1,0.03]
[1756688629507,10.74591172,201.11,201.1,0.03]
[1756688631707,11.41591172,201.11,201.1,0.03]
[1756688635155,26.0,201.09,201.08,0.03]
[1756688635443,50.34200027,201.09,201.08,1e-08]
[1756688635642,51.01200027,201.09,201.07,1e-08]
[1756688635808,5.77350856,201.08,201.07,1e-08]
[1756688636013,29.61418744,201.08,201.07,1e-08]
[1756688636256,30.28418744,201.08,201.07,1e-08]
[1756688637313,26.67,201.08,201.07,1e-08]
[1756688637544,48.85292646,201.08,201.07,1e-08]
[1756688638223,51.02053943,201.08,201.07,1e-08]
[1756688640448,4.97243371,201.11,201.07,0.72000001]
[1756688640743,0.06,201.13,201.08,0.72]
[1756688640947,5.03192634,201.13,201.1,5.78180041]
[1756688641153,5.03192634,201.13,201.11,6.50180041]
[1756688641442,0.06,201.13,201.11,6.50180041]
[1756688641656,0.06,201.13,201.11,0.72]
[1756688641823,0.06,201.13,201.11,6.50180041]
[1756688642150,26.06,201.13,201.12,0.66]
[1756688642952,36.81370912,201.13,201.08,40.44]
[1756688643249,5.78180041,201.1,201.08,39.78]
[1756688643413,5.78180041,201.11,201.08,39.78]
[1756688643612,6.48180041,201.1,201.08,39.78]
[1756688643855,5.78180041,201.1,201.07,1e-08]
[1756688644059,6.48180041,201.09,201.07,1e-08]
[1756688644357,26.0,201.11,201.07,1e-08]
[1756688644517,31.03190871,201.13,201.09,5.78180041]
[1756688644712,36.81370912,201.13,201.08,5.78180041]
[1756688644935,36.81370912,201.13,201.09,0.66]
[1756688646138,0.06,201.13,201.12,5.78180041]
[1756688646341,0.06,201.13,201.12,46.22180041]
[1756688646535,0.06,201.13,201.12,51.19395633]
[1756688647208,0.06,201.13,201.12,40.44]
[1756688647431,0.06,201.13,201.12,46.22180041]
[1756688647817,0.06,201.13,201.12,51.19395633]
[1756688648023,0.06,201.16,201.13,13.59559401]
[1756688648340,0.06,201.16,201.15,5.78180041]
[1756688648528,0.06,201.16,201.15,10.75321477]
[1756688648728,0.06,201.16,201.15,40.44]
[1756688648930,0.06,201.16,201.15,46.22180041]
[1756688649136,0.06,201.16,201.14,5.78180041]
[1756688649342,0.06,201.16,201.15,39.78]
[1756688652940,0.06,201.16,201.15,46.22180041]
[1756688653448,0.06,201.16,201.15,45.56180041]
[1756688653745,0.06,201.16,201.15,39.78]
[1756688654633,32.54180041,201.16,201.15,39.76]
[1756688654831,4.97141436,201.15,201.14,39.76]
[1756688655140,11.45321477,201.15,201.13,39.76]
[1756688655337,6.48180041,201.14,201.13,39.76]
[1756688656129,6.48180041,201.14,201.12,39.76]
[1756688656465,0.7,201.14,201.12,39.76]
[1756688657327,4.97190871,201.13,201.12,39.76]
[1756688657527,5.67190871,201.13,201.12,39.76]
[1756688658626,5.67190871,201.13,201.09,5.10231736]
[1756688658627,26.0,201.1,201.09,39.76]
[1756688658825,26.7,201.1,201.09,39.76]
[1756688659053,32.48180041,201.1,201.09,39.76]
[1756688659426,37.45445083,201.1,201.09,39.76]
[1756688660243,37.45445083,201.1,201.07,1e-08]
[1756688660452,5.78180041,201.08,201.07,1e-08]
[1756688661037,4.97265042,201.1,201.07,1e-08]
[1756688661246,30.97265042,201.1,201.07,1e-08]
[1756688661650,5.78180041,201.12,201.07,5.78180042]
[1756688661850,5.78180041,201.12,201.07,6.44180042]
[1756688662041,4.9726011,201.11,201.07,5.78180042]
[1756688662237,30.9726011,201.11,201.07,5.78180042]
[1756688662582,26.0,201.13,201.09,5.78180041]
[1756688662860,0.76,201.16,201.12,5.78180041]
[1756688663036,4.97141436,201.15,201.12,5.78180041]
[1756688663547,4.97141436,201.15,201.1,46.20180041]
[1756688663749,31.78180041,201.12,201.07,1e-08]
[1756688663969,5.78180041,201.11,201.07,39.76000001]
[1756688664253,0.7,201.1,201.07,39.76000001]
[1756688664434,5.78180041,201.11,201.07,39.76000001]
[1756688664735,26.0,201.11,201.08,6.44180041]
[1756688664938,31.78180041,201.14,201.08,5.78180041]
[1756688665127,31.78180041,201.14,201.08,0.66]
[1756688665330,31.78180041,201.14,201.07,39.76000001]
[1756688665331,5.78180041,201.12,201.07,39.76000001]
[1756688665524,4.97240316,201.11,201.07,39.76000001]
[1756688665728,6.48180041,201.1,201.07,39.76000001]
[1756688666042,5.78180041,201.1,201.08,39.76]
[1756688666361,26.0,201.1,201.07,1e-08]
[1756688666534,26.0,201.1,201.09,39.76]
[1756688666737,31.78180041,201.1,201.09,39.76]
[1756688667051,32.48180041,201.1,201.07,1e-08]
[1756688667357,31.78180041,201.08,201.07,1e-08]
[1756688667652,36.75494542,201.08,201.07,1e-08]
[1756688667857,37.45494542,201.08,201.07,1e-08]
[1756688669029,36.75494542,201.08,201.07,1e-08]
[1756688669458,37.45494542,201.08,201.07,1e-08]
[1756688670454,51.05053943,201.08,201.07,1e-08]
[1756688671436,30.97314501,201.08,201.07,1e-08]
[1756688671845,37.45494542,201.08,201.07,1e-08]
[1756688672550,30.97314501,201.08,201.07,1e-08]
[1756688673940,26.0,201.09,201.07,0.67000001]
[1756688674149,4.97244478,201.11,201.08,40.45]
[1756688674356,4.97244478,201.11,201.08,45.56180041]
[1756688674538,4.97210872,201.13,201.09,0.67]
[1756688674938,26.0,201.12,201.09,0.67]
[1756688675548,4.97166152,201.14,201.1,6.45180041]
[1756688676546,4.97166152,201.14,201.07,1e-08]
[1756688676747,5.78180041,201.12,201.08,39.78]
[1756688677138,6.48180041,201.13,201.08,39.78]
[1756688677346,6.48180041,201.13,201.08,40.45]
[1756688677748,4.97215592,201.12,201.08,40.45]
[1756688678166,4.97195071,201.13,201.09,39.76]
[1756688678387,26.0,201.15,201.11,5.78180041]
[1756688678557,26.0,201.15,201.12,6.45180041]
[1756688678755,26.0,201.15,201.13,39.76]
[1756688679064,30.97148396,201.15,201.13,39.76]
[1756688680356,6.48180041,201.14,201.08,5.78180041]
[1756688680547,5.78180041,201.12,201.09,39.76]
[1756688680763,6.48180041,201.12,201.1,39.76]
[1756688680953,32.48180041,201.12,201.1,39.76]
[1756688681275,6.48180041,201.11,201.1,39.76]
[1756688681645,26.0,201.12,201.1,39.76]
[1756688681948,26.0,201.12,201.1,40.43]
[1756688682161,26.0,201.12,201.1,39.76]
[1756688682373,26.0,201.12,201.1,45.54180041]
[1756688682566,26.0,201.12,201.11,0.67]
[1756688682775,4.97192084,201.13,201.11,0.67]
[1756688683268,4.97192084,201.13,201.1,45.54180041]
[1756688683459,4.97141436,201.15,201.12,0.67]
[1756688683651,4.97141436,201.15,201.11,5.78180041]
[1756688683855,4.97141436,201.15,201.1,39.76]
[1756688684053,8.58053119,201.15,201.1,40.43]
[1756688684271,30.97215592,201.12,201.11,39.76]
[1756688684462,26.0,201.12,201.11,39.76]
[1756688684674,26.0,201.14,201.11,43.36911683]
[1756688684874,26.0,201.14,201.11,39.76]
[1756688685176,0.76,201.13,201.11,39.76]
[1756688685558,4.36911683,201.13,201.11,39.76]
[1756688686170,0.06,201.13,201.11,39.76]
[1756688686376,5.03190871,201.13,201.11,39.76]
[1756688686582,9.34102554,201.13,201.11,39.76]
[1756688687080,5.03190871,201.13,201.11,39.76]
[1756688688361,0.06,201.13,201.12,4.27911683]
[1756688688661,0.06,201.13,201.12,3.60911683]
[1756688688875,0.06,201.13,201.07,0.67000001]
[1756688688876,3.66911683,201.13,201.07,0.67000001]
[1756688689078,3.60911683,201.12,201.08,39.76]
[1756688689675,0.06,201.13,201.11,3.60911683]
[1756688689858,0.06,201.13,201.12,44.03911683]
[1756688690053,0.06,201.13,201.12,4.27911683]
[1756688690258,0.06,201.13,201.12,44.03911683]
[1756688692474,0.06,201.13,201.12,3.60911683]
[1756688692787,0.06,201.13,201.12,39.76]
[1756688693481,0.76,201.13,201.09,3.60911683]
[1756688693661,0.76,201.13,201.07,0.67000001]
[1756688693662,0.76,201.13,201.1,39.76]
[1756688693858,3.60911683,201.11,201.07,1e-08]
[1756688694193,3.60911683,201.09,201.08,39.76]
[1756688694486,4.9728977,201.09,201.08,39.76]
[1756688694981,9.28201453,201.09,201.07,39.76000001]
[1756688695157,4.30911683,201.08,201.07,39.76000001]
[1756688695694,0.7,201.08,201.07,39.76000001]
[1756688696078,3.60911683,201.09,201.07,39.76000001]
[1756688696275,8.58178562,201.1,201.07,39.76000001]
[1756688696479,9.28178562,201.1,201.07,39.76000001]
[1756688696688,26.0,201.08,201.07,39.76000001]
[1756688696996,4.97266879,201.1,201.07,39.76000001]
[1756688697884,4.30911683,201.09,201.07,39.76000001]
[1756688698189,8.58178562,201.1,201.07,39.76000001]
[1756688698490,26.0,201.11,201.07,40.43000001]
[1756688698694,4.9722121,201.12,201.08,0.67]
[1756688698990,8.58132893,201.12,201.07,43.36911684]
[1756688699175,3.60911683,201.1,201.08,39.76]
[1756688699379,4.30911683,201.1,201.08,39.76]
[1756688699766,43.40260191,201.12,201.08,39.76]
[1756688699767,4.30911683,201.09,201.08,39.76]
[1756688699967,30.30911683,201.09,201.08,39.76]
[1756688700362,26.0,201.09,201.08,39.76]
[1756688700574,30.9728977,201.09,201.08,39.76]
[1756688701668,0.06,201.13,201.08,44.03911683]
[1756688701870,0.06,201.13,201.12,3.60911683]
[1756688702085,0.06,201.13,201.12,43.36911683]
[1756688702286,0.06,201.13,201.12,44.04911683]
[1756688704098,4.87706688,201.18,201.12,44.04911683]
[1756688704391,4.87706688,201.18,201.14,3.60911683]
[1756688704599,4.87706688,201.18,201.15,39.76]
[1756688705499,3.60911683,201.16,201.14,39.76]
[1756688705697,13.59559401,201.14,201.07,0.68000001]
[1756688705998,3.60911683,201.11,201.08,39.76]
[1756688706200,3.60911683,201.09,201.08,39.76]
[1756688706494,4.25911683,201.09,201.07,39.76000001]
[1756688706677,3.60911683,201.08,201.07,39.76000001]
[1756688706868,9.23226184,201.08,201.07,1e-08]
[1756688707298,8.58226184,201.08,201.07,1e-08]
[1756688707596,9.23226184,201.08,201.07,1e-08]
[1756688707974,25.00068118,201.08,201.07,1e-08]
[1756688709165,19.21873902,201.08,201.07,1e-08]
[1756688709484,39.59559401,201.05,201.03,0.03]
[1756688709691,19.37753617,201.04,201.02,0.03]
[1756688709874,19.37753617,200.99,200.95,27.72]
[1756688710292,20.02753617,200.99,200.95,27.72]
[1756688710491,26.0,200.96,200.91,0.2]
[1756688710793,10.75830443,200.95,200.92,39.8]
[1756688710978,36.75830443,200.95,200.92,39.8]
[1756688711183,26.0,200.95,200.92,39.8]
[1756688711387,30.97636227,200.95,200.92,39.8]
[1756688711590,26.0,200.95,200.92,39.8]
[1756688711791,30.97636227,200.95,200.92,39.8]
[1756688712704,36.75830443,200.95,200.92,39.8]
[1756688713011,31.78194216,200.95,200.92,39.8]
[1756688713174,10.75775987,200.98,200.92,46.26194216]
[1756688713688,5.78194216,200.97,200.92,40.48]
[1756688713877,5.78194216,200.96,200.92,40.48]
[1756688714079,6.43194216,200.96,200.92,39.8]
[1756688714300,5.78194216,200.95,200.91,0.2]
[1756688714473,13.59559401,200.96,200.92,39.8]
[1756688714874,4.97636227,200.95,200.92,39.8]
[1756688715274,51.00389844,200.95,200.91,0.2]
[1756688715678,31.78194216,200.95,200.91,0.2]
[1756688715998,26.0,200.95,200.92,0.68]
[1756688716705,32.43194216,200.95,200.91,39.98]
[1756688717095,37.40830443,200.95,200.91,39.98]
[1756688717290,31.78194216,200.95,200.91,39.98]
[1756688717491,26.0,200.95,200.91,46.44194216]
[1756688717880,4.97615055,200.96,200.91,46.44194216]
[1756688718081,30.97615055,200.96,200.91,46.44194216]
[1756688718416,31.78194216,200.96,200.91,46.44194216]
[1756688718605,36.75816731,200.96,200.91,46.44194216]
[1756688719109,20.02753617,200.95,200.91,0.2]
[1756688719881,0.65,200.99,200.91,6.66194216]
[1756688720078,5.78194216,200.96,200.91,6.66194216]
[1756688720708,0.65,200.95,200.91,0.2]
[1756688720895,6.43194216,200.96,200.91,0.2]
[1756688721090,37.40808992,200.96,200.91,5.98194216]
[1756688721297,32.43194216,200.96,200.91,5.98194216]
[1756688721610,5.78194216,200.95,200.91,0.2]
[1756688722298,6.43194216,200.95,200.91,40.04]
[1756688722687,36.75817817,200.96,200.91,40.04]
[1756688722891,36.75817817,200.96,200.91,45.82194216]
[1756688723089,36.75817817,200.96,200.91,40.04]
[1756688723306,5.78194216,200.95,200.91,40.04]
[1756688723908,36.75817817,200.96,200.91,40.04]
[1756688724896,0.71,200.98,200.92,6.46194216]
[1756688724897,31.84194216,200.98,200.92,6.46194216]
[1756688725100,26.06,200.98,200.92,4.97706152]
[1756688725402,36.81759578,200.98,200.94,0.88]
[1756688725788,36.81759578,200.98,200.94,0.2]
[1756688726112,31.03565362,200.98,200.95,0.68]
[1756688726311,26.06,200.98,200.96,0.68]
[1756688726514,26.06,200.98,200.96,40.46]
[1756688727111,0.06,200.98,200.97,6.46194216]
[1756688729019,0.06,200.98,200.97,11.4378092]
[1756688730192,0.06,200.98,200.97,9.26823535]
[1756688731394,0.06,200.98,200.97,70.07236831]
[1756688731620,0.06,200.98,200.97,75.04823535]
[1756688732000,0.06,200.98,200.97,77.21556327]
[1756688733097,0.06,200.98,200.97,109.21556327]
[1756688735304,1e-08,201.01,201.0,44.57071838]
[1756688735505,0.7,201.14,201.04,26.0]
[1756688735695,0.38,201.26,201.05,54.57298271]
[1756688735696,0.7,201.16,201.05,54.57298271]
[1756688735896,0.7,201.15,201.06,0.7]
[1756688736095,0.7,201.15,201.13,5.77969623]
[1756688736292,5.03047275,201.19,201.14,39.78]
[1756688736620,26.0,201.18,201.15,39.78]
[1756688736796,0.7,201.17,201.15,39.78]
[1756688737196,11.45080258,201.17,201.15,39.78]
[1756688737400,0.7,201.16,201.15,39.78]
[1756688738015,6.47969623,201.16,201.14,39.78]
[1756688738305,6.47969623,201.15,201.13,39.78]
[1756688738625,0.7,201.17,201.13,39.78]
[1756688738940,0.7,201.16,201.13,45.55969623]
[1756688739511,0.76,201.16,201.13,45.55969623]
[1756688740949,0.7,201.15,201.13,39.78]
[1756688741331,0.06,201.16,201.13,45.55969623]
[1756688741627,0.06,201.16,201.15,5.77969623]
[1756688742130,0.06,201.16,201.15,6.47969623]
[1756688743131,0.06,201.16,201.15,11.45111059]
[1756688743342,0.06,201.16,201.15,6.47969623]
[1756688743511,0.06,201.16,201.15,45.53969623]
[1756688745502,0.06,201.16,201.15,39.76]
[1756688745746,0.06,201.16,201.15,45.53969623]
[1756688747017,0.06,201.16,201.12,5.02590393]
[1756688747215,0.06,201.16,201.15,5.77969623]
[1756688747610,0.06,201.16,201.15,45.53969623]
[1756688747838,0.06,201.16,201.15,46.23969623]
[1756688749349,0.06,201.16,201.15,51.21111059]
[1756688749523,0.06,201.16,201.15,51.19111059]
[1756688749723,0.06,201.16,201.15,11.45111059]
[1756688749946,0.06,201.16,201.15,51.19111059]
[1756688751724,0.06,201.19,201.18,39.59559401]
[1756688751919,0.06,201.19,201.18,79.33559401]
[1756688752146,0.06,201.19,201.18,87.24270515]
[1756688752346,0.06,201.21,201.19,13.59559401]
[1756688752535,0.06,201.21,201.2,60.54270515]
[1756688752750,0.06,201.21,201.2,61.24270515]
[1756688752955,0.06,201.21,201.2,66.21288407]
[1756688753947,0.06,201.21,201.2,98.21288407]
[1756688754159,0.06,201.21,201.2,96.77205731]
[1756688756347,0.06,201.21,201.2,57.03205731]
[1756688756670,0.06,201.21,201.2,96.77205731]
[1756688759127,0.06,201.21,201.2,91.00577293]
[1756688759351,0.06,201.21,201.2,96.77205731]
[1756688759940,0.06,201.21,201.2,82.4564633]
[1756688760137,0.06,201.21,201.2,77.39017892]
[1756688760357,0.06,201.21,201.2,83.1564633]
[1756688760654,0.76,201.21,201.15,13.59559401]
[1756688760828,0.76,201.21,201.2,5.76628438]
[1756688761151,0.76,201.21,201.2,45.48628438]
[1756688761152,0.06,201.21,201.2,45.48628438]
[1756688761648,0.76,201.21,201.2,39.72]
[1756688761953,0.06,201.21,201.2,50.4564633]
[1756688762343,0.06,201.21,201.18,4.97047999]
[1756688762656,0.7,201.2,201.17,1.991487]
[1756688762862,0.7,201.19,201.18,45.48628438]
[1756688763931,0.06,201.21,201.18,50.4569574]
[1756688764134,0.06,201.21,201.2,5.76628438]
[1756688764336,0.76,201.21,201.2,45.48628438]
[1756688764536,0.06,201.21,201.2,39.72]
[1756688764735,5.02993191,201.21,201.14,32.0]
[1756688764962,5.76628438,201.17,201.12,5.01719214]
[1756688765258,0.7,201.16,201.13,39.72]
[1756688765646,0.7,201.15,201.13,39.72]
[1756688765856,0.7,201.14,201.13,39.72]
[1756688766233,0.7,201.14,201.13,45.48628438]
[1756688766457,0.7,201.14,201.13,39.72]
[1756688768768,0.7,201.16,201.13,45.48628438]
[1756688768971,0.7,201.19,201.15,5.76628438]
[1756688769178,0.7,201.18,201.16,39.72]
[1756688769476,5.76628438,201.19,201.17,39.72]
[1756688769772,5.76628438,201.2,201.17,39.72]
[1756688769934,0.7,201.18,201.17,39.72]
[1756688770561,5.67067302,201.18,201.17,39.72]
[1756688771074,11.4369574,201.18,201.17,39.72]
[1756688771281,0.7,201.18,201.17,39.72]
[1756688771434,5.67067302,201.18,201.17,39.72]
[1756688772144,5.67067302,201.18,201.14,5.76628438]
[1756688772454,5.76628438,201.15,201.07,35.84]
[1756688772662,5.76628438,201.12,201.07,5.76628438]
[1756688772973,0.7,201.11,201.08,39.72]
[1756688773166,0.7,201.1,201.08,45.48628438]
[1756688773341,0.7,201.1,201.08,39.72]
[1756688773543,0.7,201.09,201.08,39.72]
[1756688775439,5.6728977,201.09,201.08,39.72]
[1756688775994,5.6728977,201.09,201.03,32.03]
[1756688776145,26.0,201.05,201.03,0.03]
[1756688776487,26.0,201.05,201.04,39.72]
[1756688776645,0.7,201.05,201.04,39.72]
[1756688777459,5.67388709,201.05,201.04,39.72]
[1756688777677,26.0,201.04,201.03,0.03]
[1756688777842,31.76628438,201.04,201.03,39.75]
[1756688778043,32.46628438,201.04,201.03,39.75]
[1756688778572,46.06187839,201.04,201.03,0.03]
[1756688779339,32.46628438,201.04,201.03,0.03]
[1756688779540,37.44041888,201.04,201.03,0.03]
[1756688781780,0.7,201.08,201.03,0.03]
[1756688782077,26.0,201.05,201.03,5.79628438]
[1756688782491,26.0,201.05,201.03,0.03]
[1756688782492,0.7,201.04,201.03,0.03]
[1756688783859,0.7,201.04,201.03,39.77]
[1756688784061,26.0,201.05,201.03,45.53628438]
[1756688784257,5.67342654,201.07,201.03,45.53628438]
[1756688784488,10.73971092,201.07,201.03,39.77]
[1756688784666,26.0,201.04,201.03,0.03]
[1756688784865,31.76628438,201.04,201.03,39.77]
[1756688785068,26.0,201.04,201.03,39.77]
[1756688785397,26.7,201.04,201.03,39.77]
[1756688786106,26.0,201.04,201.03,39.77]
[1756688786896,26.7,201.04,201.03,39.77]
[1756688787088,0.7,201.04,201.03,39.77]
[1756688788207,4.9741345,201.04,201.03,39.77]
[1756688788377,9.2874155,201.04,201.03,39.77]
[1756688788891,9.2874155,201.04,201.03,0.03]
[1756688789093,9.2874155,201.04,201.03,39.77]
[1756688789094,22.88300951,201.04,201.03,39.77]
[1756688789668,9.2874155,201.04,201.03,39.77]
[1756688789995,31.6741345,201.04,201.03,39.77]
[1756688790369,4.313281,201.07,201.03,39.77]
[1756688790570,5.67386931,201.06,201.03,39.77]
[1756688790874,4.97386931,201.06,201.03,39.77]
[1756688791493,26.7,201.1,201.04,4.323281]
[1756688791794,26.7,201.1,201.06,3.613281]
[1756688791985,26.0,201.08,201.07,39.74]
[1756688792180,30.9728977,201.09,201.07,39.74]
[1756688793074,6.43757478,201.08,201.03,5.80757478]
[1756688793396,30.9728977,201.09,201.05,5.77757478]
[1756688793590,26.0,201.09,201.06,5.77757478]
[1756688793789,26.0,201.06,201.03,0.03]
[1756688793972,5.77757478,201.04,201.03,0.03]
[1756688794173,24.34730329,201.04,201.03,0.03]
[1756688794380,25.00730329,201.04,201.03,0.03]
[1756688795795,19.22972851,201.04,201.03,0.03]
[1756688796016,25.00730329,201.04,201.03,0.03]
[1756688796376,26.0,201.01,201.0,0.03]
[1756688796582,31.77757478,201.01,201.0,0.03]
[1756688796982,32.43757478,201.01,201.0,0.03]
[1756688797923,26.0,201.01,201.0,0.03]
[1756688798216,36.75245165,201.01,201.0,0.03]
[1756688798518,37.41245165,201.01,201.0,0.03]
[1756688798995,26.0,201.01,201.0,0.03]
[1756688799992,30.97487687,201.01,201.0,0.03]
[1756688800192,4.9741345,201.04,201.0,6.47757478]
[1756688800492,4.973946,201.05,201.01,6.44757478]
[1756688800806,13.59559401,201.08,201.03,5.77757478]
[1756688800807,5.77757478,201.08,201.03,5.77757478]
[1756688801037,26.0,201.06,201.04,39.74]
[1756688801214,5.77757478,201.09,201.04,46.18757478]
[1756688801521,10.7502252,201.1,201.04,46.18757478]
[1756688802024,26.0,201.07,201.04,46.18757478]
[1756688802225,26.0,201.07,201.05,0.67]